fUSD/lending_fUSD_20250929
["ID","MTS","AMOUNT","RATE_DAILY","PERIOD"]
[388368252,1759128640025,-500.0,0.00018695,2]
[388368254,1759128640035,-500.0,0.00018695,2]
[388368256,1759128640044,-906.28319069,0.00018695,2]
[388368260,1759128640077,-513.92957845,0.00018695,2]
[388368262,1759128640086,-239.84119403,0.00018695,2]
[388368264,1759128640096,-151.82,0.000187,2]
[388368266,1759128640106,-150.95,0.000187,2]
[388368269,1759128640116,-151.57,0.000187,2]
[388368272,1759128640125,-150.36,0.000187,2]
[388368274,1759128640135,-152.78,0.000187,2]
[388368277,1759128640144,-150.75,0.000187,2]
[388368280,1759128640153,-13397.59285584,0.000187,2]
[388368288,1759128640187,-668.54738543,0.000187,2]
[388368291,1759128640198,-10040.64800617,0.000187,2]
[388368474,1759128641931,-417.25500008,0.00018589,2]
[388368477,1759128641943,-5785.41499992,0.00018589,2]
[388368478,1759128641953,-7766.18370096,0.000187,2]
[388368481,1759128641965,-17286.1497533,0.000187,2]
[388368483,1759128641975,-4154.77702811,0.000187,2]
[388368485,1759128641986,-18548.59563949,0.000187,2]
[388368487,1759128641995,-1911.719023,0.000187,2]
[388368489,1759128642004,-9921.30176176,0.000187,2]
[388368495,1759128642047,-6742.15609684,0.000187,2]
[388368497,1759128642057,-3556.335851,0.000187,2]
[388368499,1759128642066,-5896.52506,0.000187,2]
[388368501,1759128642075,-1000.0,0.000188,2]
[388368502,1759128642084,-1000.0,0.000188,2]
[388368505,1759128642094,-1000.0,0.000188,2]
[388368507,1759128642104,-1000.0,0.000188,2]
[388368508,1759128642113,-331.61516373,0.00018817,2]
[388368511,1759128642122,-168.0,0.00018831,2]
[388368513,1759128642131,-6202.67,0.00018863,2]
[388368515,1759128642142,-1000.0,0.00018899,2]
[388368517,1759128642151,-905.04,0.000189,2]
[388368519,1759128642160,-6000.0,0.00019,15]
[388368521,1759128642170,-150.0,0.00019,2]
[388368523,1759128642179,-700.0,0.00019,6]
[388368525,1759128642190,-331.61516373,0.00019033,2]
[388368527,1759128642199,-867.43,0.00019041,2]
[388368529,1759128642208,-806.74,0.00019041,2]
[388368531,1759128642218,-806.74,0.00019041,2]
[388368533,1759128642227,-806.74,0.00019041,2]
[388368535,1759128642236,-1000.0,0.00019099,2]
[388368537,1759128642246,-1000.0,0.00019099,2]
[388368539,1759128642255,-1000.0,0.00019099,2]
[388368541,1759128642265,-1000.0,0.00019099,2]
[388368543,1759128642275,-1500.0,0.000191,6]
[388368545,1759128642284,-150.74,0.00019108,2]
[388368547,1759128642293,-150.79,0.00019108,2]
[388368549,1759128642303,-152.04,0.00019108,2]
[388368551,1759128642313,-151.21,0.00019108,2]
[388368553,1759128642325,-311.0,0.00019108,2]
[388368555,1759128642335,-1000.0,0.00019121,2]
[388368557,1759128642345,-1000.0,0.00019121,2]
[388368559,1759128642354,-163.22219629,0.00019126,2]
[388368561,1759128642365,-500.0,0.00019126,2]
[388368563,1759128642374,-150.79,0.00019136,2]
[388368565,1759128642383,-151.66,0.00019136,2]
[388368567,1759128642393,-152.85,0.00019136,2]
[388368569,1759128642405,-1325.75,0.00019167,2]
[388368571,1759128642415,-66086.82193751,0.00019177,2]
[388368573,1759128642425,-151.0,0.00019178,2]
[388368575,1759128642434,-5000.0,0.00019178,2]
[388368577,1759128642443,-150.0,0.00019178,2]
[388368579,1759128642453,-170.17,0.000192,2]
[388368581,1759128642462,-2300.0,0.000192,7]
[388368583,1759128642473,-418.989,0.00019227,2]
[388368585,1759128642482,-728.0,0.00019227,2]
[388368587,1759128642491,-4113.0,0.00019227,2]
[388368589,1759128642501,-331.61516373,0.0001925,2]
[388368591,1759128642510,-500.0,0.0001925,2]
[388368593,1759128642519,-500.0,0.0001925,2]
[388368595,1759128642528,-500.0,0.0001925,2]
[388368597,1759128642538,-500.0,0.0001925,2]
[388368599,1759128642548,-500.0,0.0001925,2]
[388368601,1759128642558,-500.0,0.0001925,2]
[388368603,1759128642568,-500.0,0.0001925,2]
[388368605,1759128642579,-500.0,0.0001925,2]
[388368607,1759128642588,-500.0,0.0001925,2]
[388368609,1759128642598,-607.69395068,0.0001925,2]
[388368611,1759128642607,-272.65689447,0.0001925,2]
[388368613,1759128642617,-500.0,0.0001925,2]
[388368616,1759128642627,-500.0,0.0001925,2]
[388368618,1759128642638,-506.83500734,0.0001925,2]
[388368620,1759128642649,-500.0,0.0001925,2]
[388368621,1759128642658,-500.0,0.0001925,2]
[388368622,1759128642667,-428.71763284,0.0001925,2]
[388368623,1759128642677,-310.71768314,0.0001925,2]
[388368624,1759128642687,-602.60094903,0.0001925,2]
[388368625,1759128642696,-500.0,0.0001925,2]
[388368626,1759128642706,-500.0,0.0001925,2]
[388368627,1759128642716,-500.0,0.0001925,2]
[388368628,1759128642725,-152.6,0.00019284,2]
[388368629,1759128642735,-150.74,0.00019284,2]
[388368630,1759128642744,-311.0,0.00019298,2]
[388368631,1759128642754,-3100.0,0.000193,7]
[388368632,1759128642763,-170.44,0.00019306,2]
[388368633,1759128642773,-2872.33869325,0.00019313,2]
[388368634,1759128642783,-311.0,0.00019315,2]
[388368635,1759128642793,-2872.33869321,0.00019378,2]
[388368636,1759128642802,-215.0,0.0001938,2]
[388368638,1759128642812,-151.08,0.00019384,2]
[388368639,1759128642822,-152.48,0.00019384,2]
[388368641,1759128642832,-151.53,0.00019384,2]
[388368643,1759128642842,-1325.75,0.0001939,2]
[388368645,1759128642852,-3900.0,0.000194,7]
[388368647,1759128642861,-153.0,0.00019413,2]
[388368649,1759128642871,-153.0,0.00019413,2]
[388368651,1759128642881,-282.0,0.00019413,2]
[388368653,1759128642891,-282.0,0.00019413,2]
[388368655,1759128642901,-282.0,0.00019413,2]
[388368657,1759128642910,-282.0,0.00019413,2]
[388368659,1759128642920,-282.0,0.00019413,2]
[388368662,1759128642930,-282.0,0.00019413,2]
[388368664,1759128642939,-282.0,0.00019413,2]
[388368666,1759128642950,-282.0,0.00019413,2]
[388368668,1759128642959,-282.0,0.00019413,2]
[388368670,1759128642969,-282.0,0.00019413,2]
[388368672,1759128642979,-282.0,0.00019413,2]
[388368674,1759128642989,-282.0,0.00019413,2]
[388368676,1759128642999,-282.0,0.00019413,2]
[388368678,1759128643008,-282.0,0.00019413,2]
[388368680,1759128643019,-282.0,0.00019413,2]
[388368682,1759128643029,-282.0,0.00019413,2]
[388368684,1759128643039,-282.0,0.00019413,2]
[388368686,1759128643049,-282.0,0.00019413,2]
[388368688,1759128643068,-282.0,0.00019413,2]
[388368690,1759128643084,-282.0,0.00019413,2]
[388368692,1759128643094,-282.0,0.00019413,2]
[388368694,1759128643105,-282.0,0.00019413,2]
[388368697,1759128643114,-282.0,0.00019413,2]
[388368700,1759128643125,-282.0,0.00019413,2]
[388368703,1759128643134,-282.0,0.00019413,2]
[388368706,1759128643143,-282.0,0.00019413,2]
[388368708,1759128643153,-282.0,0.00019413,2]
[388368711,1759128643162,-282.0,0.00019413,2]
[388368714,1759128643173,-282.0,0.00019413,2]
[388368716,1759128643182,-282.0,0.00019413,2]
[388368718,1759128643193,-282.0,0.00019413,2]
[388368720,1759128643203,-153.0,0.00019413,2]
[388368722,1759128643212,-153.0,0.00019413,2]
[388368724,1759128643222,-153.0,0.00019413,2]
[388368727,1759128643233,-153.0,0.00019413,2]
[388368729,1759128643242,-153.0,0.00019413,2]
[388368731,1759128643252,-153.0,0.00019413,2]
[388368732,1759128643262,-153.0,0.00019413,2]
[388368735,1759128643274,-282.0,0.00019413,2]
[388368738,1759128643283,-282.0,0.00019413,2]
[388368740,1759128643293,-282.0,0.00019413,2]
[388368743,1759128643303,-282.0,0.00019413,2]
[388368746,1759128643313,-282.0,0.00019413,2]
[388368749,1759128643327,-282.0,0.00019413,2]
[388368753,1759128643336,-282.0,0.00019413,2]
[388368756,1759128643346,-282.0,0.00019413,2]
[388368759,1759128643356,-282.0,0.00019413,2]
[388368762,1759128643367,-282.0,0.00019413,2]
[388368764,1759128643377,-282.0,0.00019413,2]
[388368766,1759128643387,-282.0,0.00019413,2]
[388368768,1759128643397,-282.0,0.00019413,2]
[388368770,1759128643406,-282.0,0.00019413,2]
[388368772,1759128643416,-282.0,0.00019413,2]
[388368774,1759128643426,-282.0,0.00019413,2]
[388368776,1759128643435,-282.0,0.00019413,2]
[388368778,1759128643445,-153.0,0.00019413,2]
[388368780,1759128643455,-153.0,0.00019413,2]
[388368782,1759128643466,-153.0,0.00019413,2]
[388368784,1759128643475,-153.0,0.00019413,2]
[388368786,1759128643486,-153.0,0.00019413,2]
[388368788,1759128643495,-282.0,0.00019413,2]
[388368790,1759128643505,-282.0,0.00019413,2]
[388368792,1759128643515,-282.0,0.00019413,2]
[388368794,1759128643525,-282.0,0.00019413,2]
[388368796,1759128643535,-282.0,0.00019413,2]
[388368798,1759128643544,-282.0,0.00019413,2]
[388368800,1759128643554,-282.0,0.00019413,2]
[388368802,1759128643566,-282.0,0.00019413,2]
[388368804,1759128643575,-282.0,0.00019413,2]
[388368806,1759128643586,-282.0,0.00019413,2]
[388368809,1759128643596,-282.0,0.00019413,2]
[388368810,1759128643606,-282.0,0.00019413,2]
[388368813,1759128643616,-282.0,0.00019413,2]
[388368815,1759128643625,-282.0,0.00019413,2]
[388368816,1759128643635,-282.0,0.00019413,2]
[388368819,1759128643645,-282.0,0.00019413,2]
[388368820,1759128643654,-282.0,0.00019413,2]
[388368823,1759128643666,-153.0,0.00019413,2]
[388368825,1759128643676,-153.0,0.00019413,2]
[388368827,1759128643685,-153.0,0.00019413,2]
[388368829,1759128643695,-153.0,0.00019413,2]
[388368831,1759128643705,-153.0,0.00019413,2]
[388368833,1759128643715,-153.0,0.00019413,2]
[388368835,1759128643725,-282.0,0.00019413,2]
[388368837,1759128643734,-282.0,0.00019413,2]
[388368839,1759128643744,-282.0,0.00019413,2]
[388368841,1759128643753,-282.0,0.00019413,2]
[388368843,1759128643764,-282.0,0.00019413,2]
[388368845,1759128643774,-282.0,0.00019413,2]
[388368847,1759128643784,-282.0,0.00019413,2]
[388368849,1759128643794,-282.0,0.00019413,2]
[388368851,1759128643803,-282.0,0.00019413,2]
[388368853,1759128643813,-282.0,0.00019413,2]
[388368855,1759128643822,-282.0,0.00019413,2]
[388368857,1759128643832,-282.0,0.00019413,2]
[388368859,1759128643841,-153.0,0.00019413,2]
[388368861,1759128643850,-153.0,0.00019413,2]
[388368863,1759128643860,-153.0,0.00019413,2]
[388368865,1759128643870,-153.0,0.00019413,2]
[388368867,1759128643880,-153.0,0.00019413,2]
[388368869,1759128643891,-153.0,0.00019413,2]
[388368871,1759128643901,-153.0,0.00019413,2]
[388368873,1759128643911,-282.0,0.00019413,2]
[388368875,1759128643922,-282.0,0.00019413,2]
[388368877,1759128643932,-282.0,0.00019413,2]
[388368879,1759128643942,-282.0,0.00019413,2]
[388368881,1759128643952,-282.0,0.00019413,2]
[388368883,1759128643961,-153.0,0.00019413,2]
[388368886,1759128643972,-153.0,0.00019413,2]
[388368888,1759128643982,-153.0,0.00019413,2]
[388368891,1759128643991,-153.0,0.00019413,2]
[388368893,1759128644001,-153.0,0.00019413,2]
[388368895,1759128644011,-153.0,0.00019413,2]
[388368897,1759128644020,-153.0,0.00019413,2]
[388368899,1759128644029,-282.0,0.00019413,2]
[388368900,1759128644040,-282.0,0.00019413,2]
[388368903,1759128644050,-282.0,0.00019413,2]
[388368905,1759128644060,-282.0,0.00019413,2]
[388368906,1759128644069,-282.0,0.00019413,2]
[388368908,1759128644080,-282.0,0.00019413,2]
[388368911,1759128644090,-282.0,0.00019413,2]
[388368913,1759128644099,-282.0,0.00019413,2]
[388368915,1759128644110,-282.0,0.00019413,2]
[388368917,1759128644120,-282.0,0.00019413,2]
[388368919,1759128644130,-282.0,0.00019413,2]
[388368921,1759128644140,-282.0,0.00019413,2]
[388368923,1759128644149,-282.0,0.00019413,2]
[388368925,1759128644159,-282.0,0.00019413,2]
[388368927,1759128644169,-153.0,0.00019413,2]
[388368929,1759128644178,-153.0,0.00019413,2]
[388368931,1759128644188,-153.0,0.00019413,2]
[388368933,1759128644198,-153.0,0.00019413,2]
[388368967,1759128644208,-282.0,0.00019413,2]
[388368973,1759128644580,-153.0,0.00019413,2]
[388368975,1759128644590,-153.0,0.00019413,2]
[388368977,1759128644600,-153.0,0.00019413,2]
[388368980,1759128644609,-153.0,0.00019413,2]
[388368981,1759128644619,-153.0,0.00019413,2]
[388368984,1759128644629,-153.0,0.00019413,2]
[388368986,1759128644639,-153.0,0.00019414,2]
[388368988,1759128644648,-153.0,0.00019414,2]
[388368989,1759128644658,-153.0,0.00019414,2]
[388368992,1759128644668,-153.0,0.00019414,2]
[388368994,1759128644678,-153.0,0.00019414,2]
[388368996,1759128644688,-153.0,0.00019414,2]
[388368998,1759128644697,-153.0,0.00019414,2]
[388369000,1759128644707,-153.0,0.00019414,2]
[388369002,1759128644716,-153.0,0.00019414,2]
[388369004,1759128644726,-153.0,0.00019414,2]
[388369005,1759128644736,-1454.82789782,0.0001944,2]
[388369007,1759128644745,-2872.33869321,0.00019443,2]
[388369008,1759128644755,-673.0,0.00019467,2]
[388369010,1759128644764,-331.61516373,0.00019467,2]
[388369012,1759128644775,-202.52920019,0.00019476,2]
[388369014,1759128644785,-700.0,0.000195,7]
[388369016,1759128644795,-2872.33869321,0.00019509,2]
[388369018,1759128644804,-311.0,0.00019545,2]
[388369020,1759128644813,-1325.75,0.00019564,2]
[388369022,1759128644823,-2872.33869321,0.00019574,2]
[388369024,1759128644833,-250.0,0.00019576,2]
[388369026,1759128644843,-223.77,0.00019581,2]
[388369028,1759128644852,-311.0,0.00019591,2]
[388369030,1759128644862,-700.0,0.000196,7]
[388369032,1759128644871,-168.0,0.0001963,2]
[388369034,1759128644880,-2872.33869321,0.00019639,2]
[388369036,1759128644890,-1500.0,0.00019668,2]
[388369038,1759128644900,-1500.0,0.00019668,2]
[388369040,1759128644909,-1000.0,0.00019674,2]
[388369042,1759128644919,-331.61516373,0.00019683,2]
[388369044,1759128644928,-700.0,0.000197,7]
[388369045,1759128644938,-2872.33869321,0.00019704,2]
[388369047,1759128644947,-156.587,0.00019726,2]
[388369049,1759128644956,-168.0,0.00019744,2]
[388369051,1759128644966,-3273.87001113,0.00019744,2]
[388369053,1759128644976,-2033.074,0.00019767,2]
[388369055,1759128644985,-2872.33869321,0.0001977,2]
[388369057,1759128644995,-1000.0,0.00019798,2]
[388369059,1759128645005,-1000.0,0.00019798,2]
[388369061,1759128645015,-1000.0,0.00019798,2]
[388369063,1759128645025,-1000.0,0.00019798,2]
[388369065,1759128645035,-1000.0,0.00019798,2]
[388369067,1759128645044,-1000.0,0.00019798,2]
[388369069,1759128645054,-1000.0,0.00019798,2]
[388369071,1759128645063,-1000.0,0.00019798,2]
[388369073,1759128645072,-1000.0,0.00019798,2]
[388369075,1759128645082,-1000.0,0.00019798,2]
[388369077,1759128645093,-1000.0,0.00019798,2]
[388369079,1759128645102,-1000.0,0.00019798,2]
[388369081,1759128645112,-1000.0,0.00019798,2]
[388369083,1759128645122,-1000.0,0.00019798,2]
[388369085,1759128645132,-1000.0,0.00019798,2]
[388369087,1759128645141,-159.11228853,0.000198,2]
[388369089,1759128645151,-700.0,0.000198,7]
[388369091,1759128645160,-2872.33869321,0.00019835,2]
[388369093,1759128645170,-200.0,0.00019839,2]
[388369095,1759128645179,-200.0,0.0001984,2]
[388369097,1759128645190,-200.0,0.0001984,2]
[388369099,1759128645200,-152.0,0.00019873,4]
[388369101,1759128645210,-1325.75,0.0001989,2]
[388369103,1759128645220,-1325.75,0.0001989,2]
[388369105,1759128645229,-11399.01609164,0.000199,2]
[388369106,1759128645238,-134871.92020692,0.000199,2]
[388369107,1759128645248,-331.61516373,0.000199,2]
[388369108,1759128645257,-170891.04867501,0.000199,2]
[388369169,1759128645890,-279.588007,0.000199,2]
[388369462,1759128648663,-6202.67,0.00019137,2]
[388369464,1759128648673,-5312.1080021,0.00019411,2]
[388369497,1759128648984,-890.5619979,0.00019411,2]
[388369499,1759128648994,-3659.345641,0.00019685,2]
[388369849,1759128652507,-193.0,0.00019414,2]
[388369851,1759128652518,-1577.9779496,0.00019685,2]
[388371970,1759129260261,163.87,9.133e-05,2]
[388371971,1759129260747,163.87,9.613e-05,2]
[388371972,1759129261969,163.87,0.00010094,2]
[388371973,1759129262257,163.87,0.00010575,2]
[388371974,1759129262581,163.87,0.00011055,2]
[388371975,1759129262826,163.87,0.00011536,2]
[388371976,1759129263029,163.87,0.00012017,2]
[388371977,1759129263398,163.87,0.00012497,2]
[388371979,1759129264477,163.87,0.00012978,2]
[388371980,1759129264804,163.87,0.00013459,2]
[388371981,1759129265086,163.87,0.00013939,2]
[388371982,1759129265323,163.87,0.0001442,2]
[388371983,1759129265578,163.87,0.00014901,2]
[388371989,1759129678379,-163.87,0.00015381,2]
[388371990,1759129678408,-163.87,0.00015862,2]
[388371991,1759129678436,-163.87,0.00016343,2]
[388371992,1759129678464,-163.87,0.00016823,2]
[388371993,1759129678492,-645.86195549,0.00016919,2]
[388371994,1759129678519,-195.0,0.00016919,2]
[388371995,1759129678546,-150.85,0.00017082,2]
[388371996,1759129678574,-171.74865833,0.00017204,2]
[388371997,1759129678603,-163.87,0.00017304,2]
[388371998,1759129678631,-283.95,0.00017569,2]
[388371999,1759129678659,-300.0,0.00017782,2]
[388372000,1759129687331,-163.87,0.00017782,2]
[388372001,1759129687347,-163.87,0.00017782,2]
[388372002,1759129687380,-163.87,0.00017782,2]
[388372003,1759129687392,-163.87,0.00017782,2]
[388372004,1759129687452,-645.86195549,0.00017782,2]
[388372005,1759129687486,-195.0,0.00017782,2]
[388372006,1759129687497,-150.85,0.00017782,2]
[388372007,1759129687555,-171.74865833,0.00017782,2]
[388372008,1759129687566,-163.87,0.00017782,2]
[388372009,1759129687623,-283.95,0.00017782,2]
[388372010,1759129687635,-300.0,0.00017782,2]
[388372011,1759129687646,-3505.66321096,0.00017782,2]
[388372022,1759129833933,-165.95,0.00017415,2]
[388372023,1759129833943,-511.00463009,0.0001768,2]
[388372024,1759129833954,-1200.0,0.0001778,2]
[388372025,1759129833964,-300.0,0.0001778,2]
[388372026,1759129833974,-2803.74617522,0.00017782,2]
[388372027,1759129833983,-163.87,0.00017784,2]
[388372028,1759129833994,-168.79613392,0.000178,2]
[388372029,1759129834004,-474.44399431,0.00017827,2]
[388372030,1759129834014,-498.56,0.00017837,2]
[388372031,1759129834023,-1644.01,0.00017885,2]
[388372032,1759129834038,-500.0,0.000179,2]
[388372033,1759129834048,-903.77,0.0001792,2]
[388372034,1759129834057,-150.99,0.0001792,2]
[388372035,1759129834068,-1399.22,0.00017952,2]
[388372036,1759129834078,-150.0,0.00018,2]
[388372037,1759129834087,-150.0,0.00018,2]
[388372038,1759129834097,-150.0,0.00018,2]
[388372039,1759129834107,-199.57926569,0.00018,2]
[388372040,1759129834118,-150.0,0.00018,2]
[388372041,1759129834128,-150.0,0.00018,2]
[388372042,1759129834138,-150.0,0.00018,2]
[388372043,1759129834147,-150.0,0.00018,2]
[388372044,1759129834157,-150.0,0.00018,2]
[388372045,1759129834166,-150.0,0.00018,2]
[388372046,1759129834176,-150.0,0.00018,2]
[388372047,1759129834185,-151.90454544,0.00018,2]
[388372048,1759129834195,-150.0,0.00018,2]
[388372049,1759129834204,-150.0,0.00018,2]
[388372050,1759129834214,-150.0,0.00018,2]
[388372051,1759129834223,-150.0,0.00018,2]
[388372052,1759129834234,-150.0,0.00018039,2]
[388372053,1759129834244,-150.0,0.00018049,2]
[388372054,1759129834254,-150.0,0.00018074,2]
[388372055,1759129834265,-150.0,0.00018078,2]
[388372056,1759129834274,-150.0,0.0001808,2]
[388372057,1759129834288,-150.0,0.00018087,2]
[388372058,1759129834298,-150.0,0.00018087,2]
[388372059,1759129834308,-150.0,0.00018091,2]
[388372060,1759129834318,-152.08,0.00018091,2]
[388372061,1759129834328,-150.0,0.00018098,2]
[388372062,1759129834339,-150.0,0.00018118,2]
[388372063,1759129834349,-150.0,0.00018118,2]
[388372064,1759129834358,-150.0,0.00018146,2]
[388372065,1759129834368,-150.0,0.00018148,2]
[388372066,1759129834377,-150.0,0.00018154,2]
[388372067,1759129834387,-150.0,0.00018157,2]
[388372068,1759129834396,-150.0,0.0001816,2]
[388372069,1759129834406,-150.0,0.00018167,2]
[388372070,1759129834415,-150.0,0.00018174,2]
[388372071,1759129834424,-150.0,0.00018174,2]
[388372072,1759129834433,-150.0,0.00018182,2]
[388372073,1759129834444,-150.0,0.00018195,2]
[388372074,1759129834454,-150.0,0.00018196,2]
[388372075,1759129834463,-150.0,0.00018222,2]
[388372076,1759129834473,-150.0,0.00018235,2]
[388372077,1759129834483,-150.0,0.00018235,2]
[388372078,1759129834493,-150.0,0.0001824,2]
[388372079,1759129834503,-150.0,0.00018244,2]
[388372080,1759129834512,-150.0,0.00018261,2]
[388372081,1759129834522,-150.0,0.00018261,2]
[388372082,1759129834531,-163.87,0.00018265,2]
[388372083,1759129834540,-150.0,0.00018273,2]
[388372084,1759129834550,-150.0,0.00018275,2]
[388372085,1759129834560,-150.0,0.00018286,2]
[388372086,1759129834570,-150.0,0.00018293,2]
[388372087,1759129834580,-1000.0,0.00018296,2]
[388372088,1759129834590,-150.0,0.00018296,2]
[388372089,1759129834600,-150.0,0.00018308,2]
[388372090,1759129834610,-150.0,0.00018314,2]
[388372091,1759129834619,-150.0,0.0001832,2]
[388372092,1759129834629,-150.0,0.00018333,2]
[388372093,1759129834639,-150.0,0.00018341,2]
[388372094,1759129834648,-150.0,0.00018348,2]
[388372095,1759129834658,-150.0,0.00018348,2]
[388372096,1759129834667,-150.0,0.00018353,2]
[388372097,1759129834677,-150.0,0.00018353,2]
[388372098,1759129834687,-150.0,0.00018364,2]
[388372099,1759129834696,-150.0,0.0001837,2]
[388372100,1759129834707,-150.0,0.0001839,2]
[388372101,1759129834717,-150.0,0.00018392,2]
[388372102,1759129834726,-150.0,0.000184,2]
[388372103,1759129834736,-150.0,0.000184,2]
[388372104,1759129834745,-150.0,0.00018431,2]
[388372105,1759129834754,-150.0,0.00018435,2]
[388372106,1759129834763,-150.0,0.00018435,2]
[388372107,1759129834774,-150.0,0.00018439,2]
[388372108,1759129834784,-150.0,0.00018444,2]
[388372109,1759129834794,-950.21637784,0.00018448,2]
[388372110,1759129834804,-150.0,0.00018455,2]
[388372111,1759129834813,-150.0,0.00018462,2]
[388372112,1759129834823,-150.0,0.00018471,2]
[388372113,1759129834833,-150.0,0.00018471,2]
[388372114,1759129834844,-150.0,0.0001848,2]
[388372115,1759129834854,-150.0,0.00018488,2]
[388372116,1759129834863,-150.0,0.000185,2]
[388372117,1759129834873,-150.0,0.0001851,2]
[388372118,1759129834883,-150.0,0.00018519,2]
[388372119,1759129834893,-150.0,0.00018522,2]
[388372120,1759129834903,-150.0,0.00018522,2]
[388372121,1759129834913,-150.0,0.00018537,2]
[388372122,1759129834923,-150.0,0.00018545,2]
[388372123,1759129834932,-150.0,0.00018549,2]
[388372124,1759129834942,-150.0,0.0001856,2]
[388372125,1759129834951,-500.0,0.00018567,2]
[388372126,1759129834960,-500.0,0.00018567,2]
[388372127,1759129834969,-500.0,0.00018567,2]
[388372128,1759129834979,-500.0,0.00018567,2]
[388372129,1759129834990,-500.0,0.00018567,2]
[388372130,1759129834999,-500.0,0.00018567,2]
[388372131,1759129835010,-500.0,0.00018567,2]
[388372132,1759129835019,-500.0,0.00018567,2]
[388372133,1759129835030,-500.0,0.00018567,2]
[388372134,1759129835044,-500.0,0.00018567,2]
[388372135,1759129835054,-500.0,0.00018567,2]
[388372136,1759129835064,-150.0,0.00018571,2]
[388372137,1759129835074,-992.74493021,0.00018572,2]
[388372138,1759129835085,-239.84119403,0.00018572,2]
[388372139,1759129835096,-150.0,0.00018585,2]
[388372140,1759129835107,-150.0,0.00018588,2]
[388372141,1759129835119,-150.0,0.00018588,2]
[388372142,1759129835129,-150.0,0.00018593,2]
[388372143,1759129835140,-150.0,0.00018609,2]
[388372144,1759129835150,-150.0,0.00018609,2]
[388372145,1759129835159,-150.0,0.00018615,2]
[388372146,1759129835169,-150.0,0.00018627,2]
[388372147,1759129835179,-150.0,0.00018634,2]
[388372148,1759129835188,-150.0,0.00018636,2]
[388372149,1759129835199,-150.0,0.0001864,2]
[388372150,1759129835208,-150.0,0.00018667,2]
[388372151,1759129835218,-150.0,0.00018667,2]
[388372152,1759129835228,-150.0,0.00018667,2]
[388372153,1759129835238,-150.0,0.00018683,2]
[388372154,1759129835249,-150.0,0.00018696,2]
[388372155,1759129835260,-150.0,0.00018696,2]
[388372156,1759129835270,-150.0,0.00018706,2]
[388372157,1759129835280,-150.0,0.00018706,2]
[388372158,1759129835291,-150.0,0.0001872,2]
[388372159,1759129835303,-150.0,0.00018727,2]
[388372160,1759129835313,-150.0,0.00018732,2]
[388372161,1759129835323,-150.0,0.00018741,2]
[388372162,1759129835333,-150.0,0.00018745,2]
[388372163,1759129835344,-150.0,0.00018769,2]
[388372164,1759129835354,-150.0,0.0001878,2]
[388372165,1759129835364,-150.0,0.00018783,2]
[388372166,1759129835373,-150.0,0.00018783,2]